bitfinex-derivatives/quotes_SOLF0:USTF0_20241002
["timestamp","ask_amount","ask_price","bid_price","bid_amount"]
[1727902268526,27.41502,140.93,140.86,3.5499]
[1727902268737,0.12502,140.93,140.84,7.84]
[1727902269037,3.5498,140.88,140.85,3.5502]
[1727902269426,3.5498,140.88,140.84,7.84]
[1727902269427,0.12502,140.93,140.86,27.29]
[1727902269634,3.67352,140.93,140.9,3.5489]
[1727902269833,0.12502,140.93,140.88,7.84]
[1727902270033,0.12502,140.93,140.92,3.5486]
[1727902272838,0.12502,140.93,140.9,3.5489]
[1727902272839,3.67352,140.93,140.9,3.5489]
[1727902273432,0.12502,140.93,140.89,7.84]
[1727902273635,0.12502,140.93,140.86,27.7118]
[1727902273838,0.12502,140.93,140.88,35.13]
[1727902274041,0.12502,140.93,140.92,3.5486]
[1727902274335,0.12502,140.93,140.92,11.3886]
[1727902274525,1.0,140.95,140.94,3.5481]
[1727902276843,1.0,140.95,140.91,30.83963478]
[1727902276844,1.0,140.95,140.91,27.29]
[1727902277041,1.0,140.95,140.91,7.84]
[1727902278232,1.0,140.95,140.94,3.5481]
[1727902280735,1.0,140.95,140.91,27.29]
[1727902280934,1.0,140.95,140.91,35.13]
[1727902281631,1.0,140.95,140.91,7.84]
[1727902282239,3.51652774,140.94,140.87,7.96502]
[1727902282438,3.51652774,140.94,140.87,0.12502]
[1727902282439,6.19002774,140.94,140.87,0.12502]
[1727902283141,28.7244,140.93,140.87,0.12502]
[1727902283339,3.5496,140.88,140.87,0.12502]
[1727902283539,7.84,140.92,140.87,0.12502]
[1727902284935,3.5496,140.88,140.87,0.12502]
[1727902286347,7.84,140.92,140.87,0.12502]
[1727902286647,1.4344,140.93,140.87,0.12502]
[1727902287143,1.4344,140.93,140.87,3.67472]
[1727902287448,1.4344,140.93,140.87,0.12502]
[1727902288246,27.29,140.92,140.83,7.84]
[1727902289048,27.29,140.92,140.81,0.12502]
[1727902289743,1.55942,140.93,140.81,0.12502]
[1727902289744,27.29,140.9,140.81,0.12502]
[1727902290057,7.82,140.89,140.81,0.12502]
[1727902290247,3.5505,140.85,140.82,3.551]
[1727902290549,3.5505,140.85,140.81,0.12502]
[1727902290748,7.82,140.89,140.81,0.12502]
[1727902290943,3.55,140.87,140.84,3.5504]
[1727902291249,7.82,140.89,140.82,27.29]
[1727902291942,3.55,140.87,140.84,3.5506]
[1727902293050,3.55,140.87,140.82,3.551]
[1727902293351,2.7436,140.86,140.81,0.12502]
[1727902293556,3.5511,140.82,140.81,0.12502]
[1727902293740,1.3085,140.85,140.81,0.12502]
[1727902294153,3.5511,140.83,140.81,0.12502]
[1727902294340,12.60999559,140.85,140.81,0.12502]
[1727902294852,3.5511,140.82,140.81,0.12502]
[1727902297169,3.5507,140.84,140.81,3.67622]
[1727902297456,12.60032949,140.85,140.81,0.12502]
[1727902297849,3.5511,140.82,140.81,0.12502]
[1727902298462,39.89032949,140.85,140.75,7.94502]
[1727902298853,27.29,140.83,140.75,0.12502]
[1727902299056,27.29,140.8,140.75,0.12502]
[1727902299257,2.6973,140.79,140.75,0.12502]
[1727902300256,2.6973,140.79,140.76,3.5526]
[1727902300763,2.6973,140.79,140.75,0.12502]
[1727902301152,3.5525,140.77,140.75,0.12502]
[1727902301462,2.6973,140.79,140.75,0.12502]
[1727902301764,3.5526,140.76,140.75,0.12502]
[1727902302162,2.6973,140.79,140.76,3.5525]
[1727902302368,3.5524,140.77,140.75,0.12502]
[1727902302857,2.6973,140.79,140.69,1.12602]
[1727902303060,3.5533,140.74,140.69,1.12602]
[1727902303355,2.6973,140.79,140.69,1.12602]
[1727902303563,3.5525,140.77,140.69,4.72344248]
[1727902303855,4.1272,140.79,140.76,3.5525]
[1727902304170,0.12502,140.81,140.72,35.11]
[1727902305058,0.12502,140.81,140.73,3.48986301]
[1727902305059,3.67642,140.81,140.73,3.48986301]
[1727902305260,3.67642,140.81,140.72,35.11]
[1727902305456,3.67642,140.81,140.78,3.5521]
[1727902306066,3.5517,140.8,140.78,3.5521]
[1727902307157,3.5517,140.8,140.72,38.73310458]
[1727902307357,3.5519,140.79,140.76,3.5525]
[1727902307565,0.12502,140.81,140.72,35.11]
[1727902307768,3.5517,140.8,140.77,3.5521]
[1727902307959,0.12502,140.81,140.73,3.5565114]
[1727902308359,0.12502,140.81,140.75,3.5528]
[1727902308671,0.12502,140.81,140.73,3.5565114]
[1727902308969,0.12502,140.81,140.72,35.11]
[1727902309668,3.67642,140.81,140.73,3.62791873]
[1727902310169,0.12502,140.81,140.78,3.5519]
[1727902310865,0.12502,140.81,140.73,3.59914264]
[1727902311263,3.67652,140.81,140.73,3.59914264]
[1727902311665,3.67652,140.81,140.78,3.552]
[1727902312071,3.67652,140.81,140.73,3.59914264]
[1727902312873,3.67652,140.81,140.78,3.552]
[1727902313969,3.67652,140.81,140.79,3.5518]
[1727902314168,0.12502,140.81,140.79,3.5518]
[1727902315064,0.12502,140.81,140.77,3.5523]
[1727902315065,3.5519,140.79,140.77,3.5523]
[1727902315271,0.12502,140.81,140.77,3.5523]
[1727902315662,0.12502,140.81,140.73,3.59914264]
[1727902315663,3.5517,140.8,140.78,3.5521]
[1727902315863,0.12502,140.81,140.78,3.5521]
[1727902316166,0.12502,140.81,140.73,3.59914264]
[1727902316167,0.12502,140.81,140.77,7.8]
[1727902316468,0.12502,140.81,140.8,3.5516]
[1727902320573,0.12502,140.81,140.75,27.29]
[1727902320574,0.12502,140.81,140.77,7.8]
[1727902321170,0.12502,140.81,140.8,3.5516]
[1727902321778,0.12502,140.81,140.79,27.29]
[1727902321779,1.42472,140.87,140.79,27.29]
[1727902321973,0.12502,140.87,140.81,27.29]
[1727902322172,0.12502,140.87,140.82,7.8]
[1727902322573,0.12502,140.87,140.86,3.5501]
[1727902322774,0.12502,140.87,140.82,7.8]
[1727902323082,0.12502,140.87,140.79,27.29]
[1727902323273,3.52404013,140.86,140.78,7.8]
[1727902323474,2.6792,140.85,140.78,7.8]
[1727902323670,3.5507,140.84,140.8,3.5514]
[1727902323870,2.6792,140.85,140.8,3.5514]
[1727902324383,3.5508,140.84,140.81,3.5513]
[1727902324589,2.6792,140.85,140.78,7.8]
[1727902324773,2.6792,140.85,140.78,11.352]
[1727902324774,3.5514,140.81,140.78,11.352]
[1727902325480,2.6792,140.85,140.78,7.8]
[1727902325889,0.12502,140.87,140.81,27.29]
[1727902326070,0.12502,140.87,140.86,3.5501]
[1727902326886,3.63257901,140.93,140.86,7.8]
[1727902327078,28.75402,140.93,140.86,7.8]
[1727902327376,3.5489,140.91,140.86,7.8]
[1727902327783,3.5492,140.9,140.87,3.5497]
[1727902327978,1.46402,140.93,140.86,7.8]
[1727902328489,0.12502,140.93,140.92,3.5486]
[1727902329783,0.12502,140.93,140.86,35.09]
[1727902330372,0.12502,140.93,140.91,3.5487]
[1727902331379,0.12502,140.93,140.92,3.5486]
[1727902331574,0.12502,140.93,140.86,35.09]
[1727902332075,3.5487,140.92,140.89,3.5492]
[1727902332484,0.12502,140.93,140.87,3.5497]
[1727902332686,0.12502,140.93,140.86,7.78]
[1727902332687,3.67342,140.93,140.86,7.78]
[1727902332886,0.12502,140.93,140.86,7.78]
[1727902333086,0.12502,140.93,140.91,3.5487]
[1727902333388,0.12502,140.93,140.86,35.07]
[1727902333686,0.12502,140.93,140.92,3.5486]
[1727902337893,1.0,140.95,140.94,3.5481]
[1727902338191,0.5808,140.95,140.94,3.5481]
[1727902338393,0.5808,140.95,140.94,11.3281]
[1727902339298,1.0,140.97,140.96,3.5476]
[1727902339684,1.12518,141.0,140.95,27.29]
[1727902339883,1.12518,141.0,140.98,27.29]
[1727902340092,1.12518,141.0,140.98,35.07]
[1727902340385,1.12518,141.0,140.95,35.07]
[1727902340787,1.12518,141.0,140.98,3.5468]
[1727902340988,1.12518,141.0,140.95,35.07]
[1727902341188,1.12518,141.0,140.93,0.12502]
[1727902342380,27.29,140.99,140.93,0.12502]
[1727902342594,7.78,140.98,140.93,0.12502]
[1727902342791,11.31723312,140.98,140.93,0.12502]
[1727902342983,3.5481,140.94,140.93,0.12502]
[1727902344285,3.548,140.95,140.93,0.12502]
[1727902344492,11.31723312,140.98,140.93,0.12502]
[1727902344886,3.5481,140.94,140.93,0.12502]
[1727902345088,11.31723312,140.98,140.93,0.12502]
[1727902345296,8.88518,141.0,140.93,0.12502]
[1727902345601,3.5473,140.98,140.93,0.12502]
[1727902346092,4.67188,141.0,140.93,0.12502]
[1727902346285,4.67188,141.0,140.95,3.5478]
[1727902346489,1.12518,141.0,140.93,0.12502]
[1727902346790,3.547,140.99,140.93,0.12502]
[1727902346992,1.12518,141.0,140.96,3.5474]
[1727902347292,1.12518,141.0,140.93,0.12502]
[1727902347498,1.12518,141.0,140.98,3.5469]
[1727902348292,4.67188,141.0,140.97,3.5473]
[1727902349193,1.12518,141.0,140.97,3.5473]
[1727902349403,3.5472,140.98,140.95,3.5477]
[1727902349603,1.12518,141.0,140.93,0.12502]
[1727902349786,3.5476,140.96,140.93,3.67332]
[1727902350394,8.88518,141.0,140.93,0.12502]
[1727902350395,3.548,140.95,140.93,0.12502]
[1727902350599,8.88518,141.0,140.93,0.12502]
[1727902351593,8.88518,141.0,140.93,3.67312]
[1727902351792,8.88518,141.0,140.93,0.12502]
[1727902352099,27.29,140.98,140.93,0.12502]
[1727902352300,30.90937573,140.98,140.93,0.12502]
[1727902352597,3.548,140.95,140.93,0.12502]
[1727902353108,3.5481,140.94,140.93,0.12502]
[1727902354194,38.66937573,140.98,140.93,0.12502]
[1727902354495,11.37937573,140.98,140.93,0.12502]
[1727902355098,3.5476,140.96,140.94,3.5481]
[1727902355291,11.37937573,140.98,140.93,0.12502]
[1727902355697,3.5475,140.97,140.94,3.5479]
[1727902356191,11.37937573,140.98,140.93,0.12502]
[1727902356398,3.5479,140.95,140.93,3.67322]
[1727902357201,11.37937573,140.98,140.93,3.67322]
[1727902357410,3.5477,140.96,140.93,3.67322]
[1727902358312,11.37937573,140.98,140.93,0.12502]
[1727902358496,3.5475,140.97,140.93,0.12502]
[1727902358694,11.37937573,140.98,140.93,0.12502]
[1727902359211,3.5475,140.97,140.95,3.5477]
[1727902361509,3.5475,140.97,140.93,0.12502]
[1727902361714,3.5475,140.97,140.94,3.548]
[1727902362106,3.5475,140.97,140.93,0.12502]
[1727902362414,3.5475,140.97,140.95,3.5478]
[1727902362909,3.5475,140.97,140.93,3.67322]
[1727902363108,11.37937573,140.98,140.93,0.12502]
[1727902363508,7.16667573,140.98,140.95,3.5476]
[1727902363717,1.12518,141.0,140.94,17.04]
[1727902364515,1.12518,141.0,140.96,17.04]
[1727902364715,1.12518,141.0,140.96,24.8]
[1727902364923,1.12518,141.0,140.99,3.5468]
[1727902365520,1.12518,141.0,140.96,7.76]
[1727902367223,1.12518,141.0,140.99,3.5468]
[1727902368024,1.12518,141.0,140.98,3.547]
[1727902368227,1.12518,141.0,140.96,7.76]
[1727902368428,3.5469,140.99,140.93,7.88502]
[1727902368725,1.12518,141.0,140.97,3.5471]
[1727902368921,3.5469,140.99,140.97,3.5471]
[1727902369529,3.5473,140.98,140.95,3.5478]
[1727902369720,7.06886115,140.98,140.95,3.5478]
[1727902370122,7.06886115,140.98,140.93,0.12502]
[1727902370123,3.52156115,140.98,140.93,0.12502]
[1727902370322,1.12518,141.0,140.93,0.12502]
[1727902371723,1.12518,141.0,140.99,3.5468]
[1727902371930,1.12518,141.0,140.94,7.76]
[1727902372224,1.12518,141.0,140.99,3.5468]
[1727902372433,1.12518,141.0,140.94,11.36848261]
[1727902372621,1.12518,141.0,140.95,27.25]
[1727902373222,1.12518,141.0,140.99,3.5468]
[1727902373633,1.12518,141.0,140.96,7.76]
[1727902373821,1.12518,141.0,140.99,3.5468]
[1727902374231,306.23052,141.03,141.02,3.5461]
[1727902374232,304.84824494,141.03,141.02,3.5461]
[1727902374425,304.84824494,141.03,141.02,11.3061]
[1727902374923,304.84824494,141.03,141.02,3.5461]
[1727902375124,304.84824494,141.03,141.02,11.2861]
[1727902376421,304.84824494,141.03,141.02,3.5461]
[1727902376623,304.84824494,141.03,141.02,11.2861]
[1727902377131,304.84824494,141.03,141.02,3.5461]
[1727902378137,304.84824494,141.03,140.99,34.97]
[1727902378427,304.84824494,141.03,140.99,38.55035002]
[1727902378731,304.84824494,141.03,141.02,3.5461]
[1727902379131,304.84824494,141.03,140.99,7.72]
[1727902379325,304.84824494,141.03,141.02,3.5461]
[1727902382330,189.62617392,141.03,141.02,30.7961]
[1727902382930,189.62617392,141.03,141.02,38.5161]
[1727902383641,189.62617392,141.03,141.02,30.7961]
[1727902383833,189.62617392,141.03,141.02,38.5161]
[1727902384836,21.68787391,141.03,141.02,142.3461]
[1727902385146,1.0,141.07,141.06,3.5451]
[1727902385329,1.0,141.09,141.06,34.97]
[1727902385533,0.12502,141.11,141.08,17.01]
[1727902385732,0.12502,141.11,141.1,20.5541]
[1727902385937,0.12502,141.11,141.1,28.2741]
[1727902386240,0.12502,141.11,141.1,3.5441]
[1727902387533,0.12502,141.11,141.09,11.2642]
[1727902387736,0.12502,141.11,141.08,7.72]
[1727902388133,0.12502,141.11,141.04,27.23]
[1727902388338,4.27112,141.11,141.06,7.72]
[1727902388641,3.5441,141.1,141.07,3.5447]
[1727902389144,3.5443,141.09,141.06,3.545]
[1727902389934,4.27112,141.11,141.05,7.72]
[1727902390739,4.27112,141.11,141.06,27.23]
[1727902390935,1.0,141.14,141.09,27.23]
[1727902391136,1.0,141.14,141.11,30.7738]
[1727902391345,1.0,141.14,141.11,34.95]
[1727902391532,1.0,141.14,141.13,3.5433]
[1727902391738,1.0,141.14,141.13,11.2633]
[1727902392460,1.12502,141.17,141.13,34.95]
[1727902392749,0.12502,141.23,141.17,27.23]
[1727902392937,0.12502,141.23,141.18,7.72]
[1727902393339,0.12502,141.23,141.2,27.23]
[1727902393645,0.12502,141.23,141.22,3.5411]
[1727902393840,0.12502,141.23,141.18,7.72]
[1727902394154,0.12502,141.23,141.2,3.5415]
[1727902394448,0.12502,141.23,141.2,27.23]
[1727902394745,0.12502,141.23,141.21,3.5413]
[1727902395047,0.12502,141.23,141.2,27.23]
[1727902396445,0.12502,141.23,141.22,3.5411]
[1727902396645,0.12502,141.23,141.12,76.56]
[1727902396946,0.12502,141.23,141.22,3.5411]
[1727902397447,0.12502,141.23,141.2,3.5414]
[1727902397644,0.12502,141.23,141.14,27.23]
[1727902398050,0.12502,141.23,141.21,3.5413]
[1727902398648,0.12502,141.23,141.22,3.5411]
[1727902399350,3.7241,141.27,141.23,3.5408]
[1727902399946,3.7241,141.27,141.26,3.5401]
[1727902400544,1.0,141.27,141.26,3.5401]
[1727902400750,1.12502,141.29,141.28,3.5396]
[1727902401548,1.0,141.32,141.31,3.5388]
[1727902402646,1.0,141.32,141.3,3.5389]
[1727902403353,1.0,141.32,141.28,7.72]
[1727902403555,1.0,141.32,141.31,3.5388]
[1727902403861,1.0,141.32,141.28,7.72]
[1727902404249,1.3388,141.38,141.28,7.72]
[1727902404250,1.12502,141.41,141.31,27.23]
[1727902404450,1.12502,141.41,141.36,27.23]
[1727902404649,1.12502,141.41,141.37,7.7]
[1727902405147,1.12502,141.41,141.38,3.537]
[1727902405362,1.12502,141.41,141.38,27.23]
[1727902405655,1.0,141.44,141.38,27.23]
[1727902405853,1.0,141.44,141.39,7.7]
[1727902406051,1.0,141.44,141.41,27.23]
[1727902406355,1.0,141.44,141.43,3.5358]
[1727902406564,1.0,141.44,141.43,11.2358]
[1727902406945,1.0,141.44,141.43,3.5358]
[1727902407150,1.0,141.44,141.36,27.23]
[1727902407455,1.0,141.44,141.38,7.7]
[1727902407651,4.5356,141.44,141.38,7.7]
[1727902407848,1.0,141.44,141.38,7.7]
[1727902408055,1.0,141.44,141.43,44.14]
[1727902408256,1.0,141.46,141.43,55.36747528]
[1727902408457,0.12502,141.47,141.46,3.535]
[1727902409351,0.12518,141.48,141.47,3.5348]
[1727902410861,0.12518,141.48,141.46,11.215]
[1727902411059,0.12518,141.48,141.46,3.535]
[1727902411458,0.12518,141.48,141.46,7.68]
[1727902411959,1.0,141.49,141.48,3.5345]
[1727902412669,1.0,141.49,141.42,76.44]
[1727902412902,1.0,141.49,141.44,44.14]
[1727902413460,1.0,141.49,141.45,7.68]
[1727902414358,1.0,141.49,141.47,3.5346]
[1727902414759,1.0,141.49,141.45,7.68]
[1727902414964,1.0,141.49,141.48,3.5345]
[1727902415664,1.0,141.51,141.47,88.28]
[1727902415864,0.12502,141.53,141.52,3.5335]
[1727902416165,0.12502,141.53,141.52,11.2135]
[1727902416953,0.12502,141.53,141.52,3.5335]
[1727902418759,1.0,141.56,141.51,7.68]
[1727902418970,1.0,141.56,141.53,47.6733]
[1727902419669,1.0,141.56,141.51,7.68]
[1727902419670,1.0,141.56,141.52,3.5335]
[1727902419962,1.0,141.56,141.49,44.14]
[1727902420357,4.5333,141.54,141.5,3.5339]
[1727902420556,1.0,141.54,141.48,7.68]
[1727902420759,1.0,141.54,141.47,0.12502]
[1727902420760,1.3967,141.53,141.47,0.12502]
[1727902420974,1.3392,141.52,141.47,0.12502]
[1727902421171,2.7444,141.52,141.47,0.12502]
[1727902421371,2.7444,141.52,141.47,3.65982]
[1727902421573,3.5338,141.51,141.47,3.65982]
[1727902421974,2.7444,141.52,141.49,3.5342]
[1727902422177,3.5339,141.51,141.47,44.26502]
[1727902422366,2.7444,141.52,141.47,44.26502]
[1727902422571,2.7444,141.52,141.51,3.5338]
[1727902422780,1.0,141.54,141.51,44.14]
[1727902423072,1.0,141.54,141.52,3.5333]
[1727902423274,1.0,141.54,141.51,44.14]
[1727902423472,1.0,141.54,141.47,0.12502]
[1727902423670,1.0,141.54,141.49,3.5343]
[1727902423976,1.0,141.54,141.47,44.26502]
[1727902424173,1.0,141.54,141.5,3.534]
[1727902424677,4.5332,141.54,141.47,44.26502]
[1727902424870,1.0,141.54,141.47,51.94502]
[1727902425277,1.0,141.54,141.53,3.5333]
[1727902425577,1.0,141.54,141.47,51.94502]
[1727902426463,1.0,141.54,141.49,44.14]
[1727902427276,1.0,141.54,141.51,3.5336]
[1727902427466,1.0,141.54,141.47,51.94502]
[1727902427673,1.0,141.54,141.47,0.12502]
[1727902428367,3.5337,141.52,141.48,3.5345]
[1727902428768,1.0,141.54,141.47,0.12502]
[1727902428975,7.68,141.53,141.47,0.12502]
[1727902429283,7.68,141.53,141.37,8.4444]
[1727902429284,7.80502,141.53,141.37,8.4444]
[1727902429474,3.5344,141.49,141.43,3.5358]
[1727902429777,28.16,141.52,141.39,44.12]
[1727902429778,9.1079,141.48,141.39,44.12]
[1727902429978,3.5352,141.46,141.4,3.5363]
[1727902430182,11.23088671,141.47,141.39,44.12]
[1727902430379,11.23088671,141.47,141.37,7.68]
[1727902430683,3.5359,141.43,141.39,3.5367]
[1727902430985,3.5359,141.43,141.37,7.68]
[1727902431282,3.5356,141.44,141.41,3.66132]
[1727902431577,1.3636,141.46,141.41,0.12502]
[1727902432082,4.81443147,141.46,141.41,0.12502]
[1727902432488,3.5356,141.44,141.41,3.66122]
[1727902432677,1.3636,141.46,141.41,0.12502]
[1727902433081,3.5356,141.44,141.41,3.66122]
[1727902433472,1.3636,141.46,141.41,3.66122]
[1727902433678,1.3636,141.46,141.41,0.12502]
[1727902434280,4.8988,141.46,141.43,3.5357]
[1727902434787,1.3636,141.46,141.41,0.12502]
[1727902435482,3.5357,141.44,141.41,3.66112]
[1727902436788,3.5356,141.44,141.42,3.536]
[1727902437587,3.5354,141.45,141.42,3.536]
[1727902438297,1.3766,141.47,141.44,3.5355]
[1727902438583,1.3766,141.47,141.41,94.24502]
[1727902439180,1.3766,141.47,141.41,101.92502]
[1727902439790,4.9116,141.47,141.41,101.92502]
[1727902439980,4.9116,141.47,141.41,94.24502]
[1727902440180,1.3766,141.47,141.41,50.12502]
[1727902440400,7.68,141.46,141.41,50.12502]
[1727902441187,3.536,141.42,141.41,50.12502]
[1727902442796,3.536,141.42,141.41,47.97102]
[1727902442979,3.536,141.42,141.41,45.81702]
[1727902443186,11.216,141.42,141.41,21.79412]
[1727902443391,11.216,141.42,141.41,17.48672]
[1727902443788,11.216,141.42,141.41,15.33302]
[1727902444392,11.216,141.42,141.41,11.6802]
[1727902444596,55.336,141.42,141.41,11.6802]
[1727902444992,58.927191,141.42,141.41,11.6802]
[1727902445595,55.336,141.42,141.41,8.68020001]
[1727902445896,55.336,141.42,141.35,0.12502]
[1727902445897,3.5375,141.36,141.35,0.12502]
[1727902446087,11.2175,141.36,141.35,0.12502]
[1727902446797,47.66626573,141.42,141.35,0.12502]
[1727902446798,3.5373,141.38,141.35,0.12502]
[1727902446998,7.68,141.41,141.35,0.12502]
[1727902447395,3.5375,141.36,141.35,0.12502]
[1727902447586,11.2175,141.36,141.35,0.12502]
[1727902447793,14.7592996,141.36,141.35,0.12502]
[1727902448092,14.7592996,141.36,141.26,1.001]
[1727902448093,3.5398,141.27,141.26,1.001]
[1727902448296,7.68,141.28,141.26,1.001]
[1727902448895,7.68,141.3,141.26,1.001]
[1727902449889,3.5398,141.27,141.26,1.001]
[1727902451992,11.2197,141.28,141.26,1.001]
[1727902452193,7.68,141.28,141.26,1.001]
[1727902452803,3.5398,141.27,141.26,1.001]
[1727902453095,3.51135839,141.31,141.26,1.001]
[1727902453296,7.68,141.32,141.26,1.001]
[1727902453495,3.50516566,141.31,141.26,1.001]
[1727902453696,3.5393,141.3,141.26,4.541]
[1727902454197,3.50516566,141.31,141.26,1.001]
[1727902454397,7.68,141.34,141.26,1.001]
[1727902454895,3.5395,141.29,141.26,4.5409]
[1727902455196,11.25527605,141.34,141.26,1.001]
[1727902455392,3.5394,141.29,141.26,1.001]
[1727902456200,3.5389,141.31,141.28,3.5396]
[1727902456404,55.37527605,141.34,141.26,1.001]
[1727902456699,3.5387,141.32,141.26,1.001]
[1727902456902,55.37527605,141.34,141.26,1.001]
[1727902457287,3.57527605,141.34,141.26,1.001]
[1727902457502,3.57527605,141.34,141.3,3.539]
[1727902458002,1.12502,141.35,141.31,3.5388]
[1727902458695,3.5382,141.34,141.3,3.5389]
[1727902459306,1.12502,141.35,141.29,7.68]
[1727902459503,3.66292,141.35,141.29,7.68]
[1727902460202,0.12502,141.35,141.29,7.68]
[1727902460599,3.5382,141.34,141.31,3.5387]
[1727902460802,0.12502,141.35,141.29,7.68]
[1727902461400,3.66292,141.35,141.29,7.68]
[1727902461594,0.12502,141.35,141.29,7.68]
[1727902462104,3.5384,141.33,141.3,3.5389]
[1727902462405,3.5384,141.33,141.29,7.68]
[1727902462707,0.12502,141.35,141.29,7.68]
[1727902463095,3.5384,141.33,141.3,3.539]
[1727902465093,0.12502,141.35,141.29,34.88]
[1727902465689,0.12502,141.35,141.34,3.538]
[1727902466098,0.12502,141.35,141.29,34.88]
[1727902466404,3.66282,141.35,141.32,3.5384]
[1727902466603,0.12502,141.35,141.27,31.1794]
[1727902466900,0.12502,141.35,141.27,2.624]
[1727902466901,27.2,141.34,141.27,2.624]
[1727902467201,0.12502,141.35,141.27,2.624]
[1727902467202,27.2,141.32,141.27,2.624]
[1727902467393,3.5396,141.28,141.27,2.624]
[1727902467597,3.5396,141.28,141.26,1.001]
[1727902467598,30.79973728,141.32,141.26,1.001]
[1727902467895,27.2,141.29,141.26,1.001]
[1727902468100,3.5398,141.27,141.26,1.001]
[1727902468402,7.05179058,141.27,141.26,1.001]
[1727902469804,3.51199058,141.27,141.26,1.001]
[1727902470009,7.68,141.29,141.26,1.001]
[1727902470504,11.2195,141.29,141.26,4.5411]
[1727902470804,3.5395,141.29,141.26,4.5411]
[1727902471899,3.5395,141.29,141.26,1.001]
[1727902472096,7.12004101,141.3,141.26,1.001]
[1727902472299,3.58084101,141.3,141.26,1.001]
[1727902472711,3.5393,141.29,141.26,4.5409]
[1727902473707,3.58084101,141.3,141.26,1.001]
[1727902473910,7.11994101,141.3,141.27,3.5397]
[1727902474408,76.44,141.46,141.28,7.68]
[1727902474713,51.86,141.42,141.3,44.18]
[1727902475004,3.5374,141.37,141.34,3.538]
[1727902475211,3.61549214,141.38,141.34,3.538]
[1727902475604,3.5374,141.37,141.34,3.538]
[1727902476109,3.61549214,141.38,141.32,7.68]
[1727902476403,3.61549214,141.38,141.32,11.2184]
[1727902476404,3.5378,141.36,141.32,11.2184]
[1727902476613,3.61549214,141.38,141.32,11.2184]
[1727902477109,3.61549214,141.38,141.32,7.68]
[1727902477302,3.61549214,141.38,141.33,3.5382]
[1727902477700,3.61549214,141.38,141.32,7.68]
[1727902477899,44.18,141.37,141.31,2.7136]
[1727902478103,44.18,141.37,141.31,1.3077]
[1727902478304,3.5386,141.32,141.31,1.3077]
[1727902478607,44.18,141.37,141.31,1.3077]
[1727902478813,11.29549214,141.38,141.31,1.3077]
[1727902479004,3.5382,141.34,141.31,4.8463]
[1727902479608,11.29549214,141.38,141.31,1.3077]
[1727902480310,3.5386,141.32,141.31,1.3077]
[1727902480506,11.29549214,141.38,141.27,9.0465]
[1727902480507,44.18,141.37,141.27,9.0465]
[1727902480707,3.5384,141.33,141.28,3.5393]
[1727902480915,11.29549214,141.38,141.28,44.18]
[1727902481313,3.66302,141.35,141.3,3.539]
[1727902481510,0.12502,141.35,141.28,44.18]
[1727902481912,0.12502,141.35,141.29,3.5391]
[1727902482214,7.80502,141.35,141.27,2.6675]
[1727902483014,3.5387,141.32,141.27,2.6675]
[1727902483315,7.80502,141.35,141.27,2.6675]